[Event "23rd Hoogeveen Open 2019"]
[Site "Hoogeveen"]
[Date "2019.10.21"]
[Round "3.22"]
[White "Labruyere, Roger"]
[Black "Blagojevic, Tijana"]
[Result "0-1"]
[ECO "E04"]
[WhiteElo "1932"]
[BlackElo "2151"]
[Annotator "RC"]
[PlyCount "72"]
[EventDate "2019.10.19"]
[EventType "swiss"]
[EventCountry "NED"]
[SourceTitle "playchess.com"]
[Source "ChessBase"]
[SourceQuality "1"]
[TimeControl "40/5400+30:1800+30"]

1. d4 {[%emt 0:00:00]} d5 {[%emt 0:00:00]} 2. c4 {[%emt 0:00:00]} c6 {[%emt 0:00:00]} 3. Nf3 {[%emt 0:00:00]} Nf6 {[%emt 0:00:00]} 4. g3 {[%emt 0:00:09]} dxc4 {[%emt 0:00:00]} 5. Bg2 {[%emt 0:01:45]} b5 {[%emt 0:01:08]} 6. Ne5 {[%emt 0:03:09]} Bb7 {[%emt 0:00:41]} 7. a4 {[%emt 0:03:40]} a6 {[%emt 0:02:53]} 8. Nc3 {[%emt 0:10:39]} e6 {[%emt 0:00:44]} 9. O-O {[%emt 0:00:34]} Nd5 {[%emt 0:01:37]} 10. e4 {[%emt 0:03:51]} Nxc3 {[%emt 0:00:52]} 11. bxc3 {[%emt 0:00:05]} Nd7 {[%emt 0:06:57]} 12. f4 {[%emt 0:03:54]} Qc7 {[%emt 0:12:05]} 13. Qh5 {[%emt 0:07:47]} Nf6 {[%emt 0:07:52]} 14. Qe2 {[%emt 0:01:16]} Be7 {[%emt 0:04:09]} 15. g4 {[%emt 0:05:40]} Nd7 {[%emt 0:03:43]} 16. g5 {[%emt 0:06:13]} g6 {[%emt 0:07:47]} 17. Ng4 {[%emt 0:01:25]} O-O-O {[%emt 0:01:06]} 18. Nf2 {[%emt 0:07:19]} h6 {[%emt 0:02:23]} 19. e5 {[%emt 0:06:35]} hxg5 {[%emt 0:06:29]} 20. fxg5 {[%emt 0:00:08]} f5 {[%emt 0:01:16]} 21. gxf6 {[%emt 0:04:32]} Nxf6 {[%emt 0:00:35]} 22. Ng4 {[%emt 0:00:35]} Nd5 {[%emt 0:00:57]} 23. Bxd5 {[%emt 0:03:47]} Rxd5 {[%emt 0:00:43]} 24. Ne3 {[%emt 0:05:56]} Rdd8 {[%emt 0:03:22]} 25. Qg4 {[%emt 0:00:11]} Qd7 {[%emt 0:00:48]} 26. Bb2 {[%emt 0:04:54]} Rh5 {[%emt 0:03:35]} 27. Ng2 {[%emt 0:04:11]} c5 {[%emt 0:01:18]} 28. Rf2 {[%emt 0:03:52]} cxd4 {[%emt 0:02:13]} 29. cxd4 {[%emt 0:00:04]} b4 {[%emt 0:00:46]} 30. Qxg6 {[%emt 0:02:33]} Rg5 {[%emt 0:00:22]} 31. Qc2 {[%emt 0:00:35]} Rdg8 {[%emt 0:00:39]} 32. Qxc4+ {[%emt 0:00:45]} Kb8 {[%emt 0:00:11]} 33. Bc1 {[%emt 0:04:31]} Rxg2+ {[%emt 0:00:24]} 34. Kf1 {[%emt 0:00:43]} Rg1+ {[%emt 0:00:53]} 35. Ke2 {[%emt 0:00:06]} Rc8 {[%emt 0:00:09]} 36. Qd3 {[%emt 0:00:22]} Rgxc1 {[%emt 0:00:14]} 0-1

[Event "23rd Hoogeveen Open 2019"]
[Site "Hoogeveen"]
[Date "2019.10.21"]
[Round "3.31"]
[White "Taams, Sander"]
[Black "Albers, Sasa"]
[Result "0-1"]
[ECO "B10"]
[WhiteElo "2094"]
[BlackElo "1975"]
[Annotator "NA RC"]
[PlyCount "80"]
[EventDate "2019.10.19"]
[EventType "swiss"]
[EventCountry "NED"]
[SourceTitle "playchess.com"]
[Source "ChessBase"]
[SourceQuality "1"]
[TimeControl "40/5400+30:1800+30"]

1. e4 {[%emt 0:00:00]} c6 {[%emt 0:00:00]} 2. Qe2 {[%emt 0:01:12]} d5 {[%emt 0:00:00]} 3. d3 {[%emt 0:00:08]} dxe4 {[%emt 0:05:13]} 4. dxe4 {[%emt 0:00:54]} e5 {[%emt 0:00:02]} 5. Nf3 {[%emt 0:10:30]} Nf6 {[%emt 0:01:06]} 6. Nbd2 {[%emt 0:02:17] B10: Caro-Kann: 2 d3 and 2 c4} Nbd7 {[%emt 0:03:10]} 7. b3 $146 {[%emt 0:03:24]} ({Predecessor:} 7. Nc4 Qc7 8. Bd2 Bc5 9. b4 Be7 10. g3 O-O 11. Bg2 {½-½ (36) Bauer,C (2624)-Dragun,K (2580) Maastricht 2015}) 7... Bc5 {[%emt 0:18:43]} 8. h3 {[%emt 0:04:19]} O-O {[%emt 0:02:17]} 9. Bb2 {[%emt 0:00:46]} Re8 {[%emt 0:01:00]} 10. g3 {[%emt 0:01:47]} Qe7 {[%emt 0:06:39]} 11. Bg2 {[%emt 0:01:12]} Ba3 {[%emt 0:01:44]} 12. Bxa3 {[%emt 0:03:15]} Qxa3 {[%emt 0:00:03]} 13. O-O {[%emt 0:01:04]} Nb6 {[%emt 0:02:31]} 14. Rfd1 {[%emt 0:07:38]} Qe7 {[%emt 0:11:58]} 15. a4 {[%emt 0:01:49]} a5 {[%emt 0:00:45]} 16. Qe3 {[%emt 0:02:35]} Qc7 {[%emt 0:03:48]} 17. Nh4 {[%emt 0:03:41]} Be6 {[%emt 0:04:43]} 18. Ndf3 {[%emt 0:03:34]} Nbd7 {[%emt 0:07:03]} 19. g4 {[%emt 0:03:58]} Rad8 {[%emt 0:01:34]} 20. Nf5 {[%emt 0:01:26]} Bxf5 {[%emt 0:00:33]} 21. exf5 {[%emt 0:05:04]} Nd5 {[%emt 0:00:42]} 22. Qe1 {[%emt 0:00:47]} h6 {[%emt 0:08:19]} 23. c3 {[%emt 0:08:18]} N7f6 {[%emt 0:04:08]} 24. b4 {[%emt 0:00:40]} (24. c4 $17 {might work better.} e4 25. Nd4) 24... axb4 {[%emt 0:01:42]} 25. cxb4 {[%emt 0:00:12]} Nf4 {[%emt 0:00:17]} 26. Rxd8 {[%emt 0:03:17]} Qxd8 {[%emt 0:00:01]} 27. a5 {[%emt 0:00:24]} (27. Ra3 $17) 27... N6d5 {[%emt 0:01:51]} 28. Qe4 {[%emt 0:11:48]} Nc3 {[%emt 0:03:01]} 29. Qc4 {[%emt 0:00:47]} e4 {[%emt 0:01:11]} 30. Nh2 $2 {[%emt 0:07:36]} (30. Bf1 Ncd5 31. Nh2) 30... e3 {[%emt 0:06:23]} 31. fxe3 {[%emt 0:00:32]} Nfe2+ {[%emt 0:01:33]} 32. Kh1 {[%emt 0:03:24]} Ng3+ {[%emt 0:00:05]} 33. Kg1 {[%emt 0:00:06]} Rxe3 {[%emt 0:01:29]} 34. Nf1 {[%emt 0:01:18]} Nxf1 $19 {[%emt 0:00:37]} 35. Kxf1 {[%emt 0:03:18]} Qd2 {[%emt 0:01:11]} 36. Kg1 {[%emt 0:02:24]} Re2 {[%emt 0:00:51]} 37. Bxc6 {[%emt 0:01:54]} Qe3+ {[%emt 0:00:19]} 38. Kh1 {[%emt 0:00:08]} Qxh3+ {[%emt 0:00:07]} 39. Kg1 {[%emt 0:00:07]} Qh2+ {[%emt 0:00:04]} 40. Kf1 {[%emt 0:00:08]} Qf2# {[%emt 0:00:37]} 0-1

[Event "23rd Hoogeveen Open 2019"]
[Site "Hoogeveen"]
[Date "2019.10.21"]
[Round "3.32"]
[White "Mijnster, Niels"]
[Black "Stock, Andreas"]
[Result "0-1"]
[ECO "A57"]
[WhiteElo "2145"]
[BlackElo "2076"]
[Annotator "RC"]
[PlyCount "66"]
[EventDate "2019.10.19"]
[EventType "swiss"]
[EventCountry "NED"]
[SourceTitle "playchess.com"]
[Source "ChessBase"]
[SourceQuality "1"]
[TimeControl "40/5400+30:1800+30"]

1. d4 {[%emt 0:00:00]} Nf6 {[%emt 0:00:00]} 2. c4 {[%emt 0:00:00]} c5 {[%emt 0:00:04]} 3. d5 {[%emt 0:00:00]} b5 {[%emt 0:00:17]} 4. cxb5 {[%emt 0:00:00]} a6 {[%emt 0:00:20]} 5. b6 {[%emt 0:02:57]} e6 {[%emt 0:05:13]} 6. Nc3 {[%emt 0:00:03]} exd5 {[%emt 0:06:55]} 7. Nxd5 {[%emt 0:00:10]} Nxd5 {[%emt 0:00:16]} 8. Qxd5 {[%emt 0:00:03]} Nc6 {[%emt 0:00:20]} 9. e4 {[%emt 0:00:28]} Be7 {[%emt 0:05:08]} 10. Bc4 {[%emt 0:00:08]} O-O {[%emt 0:00:07]} 11. Nf3 {[%emt 0:01:56]} Bb7 {[%emt 0:05:33]} 12. Qd2 {[%emt 0:01:45]} Qxb6 {[%emt 0:00:44]} 13. O-O {[%emt 0:01:41]} d6 {[%emt 0:07:33]} 14. Qf4 {[%emt 0:23:55]} Rad8 {[%emt 0:13:40]} 15. Rd1 {[%emt 0:29:13]} Bf6 {[%emt 0:05:56]} 16. Bd2 {[%emt 0:06:58]} Ne5 {[%emt 0:06:42]} 17. Nxe5 {[%emt 0:02:07]} dxe5 {[%emt 0:02:08]} 18. Qe3 {[%emt 0:08:31]} Rd4 {[%emt 0:02:40]} 19. Qb3 {[%emt 0:06:20]} Qxb3 {[%emt 0:05:00]} 20. Bxb3 {[%emt 0:00:02]} Rxe4 {[%emt 0:16:53]} 21. f3 {[%emt 0:05:13]} Rd4 {[%emt 0:07:11]} 22. Be3 {[%emt 0:00:55]} e4 {[%emt 0:01:37]} 23. fxe4 {[%emt 0:02:20]} Rxe4 {[%emt 0:03:19]} 24. Bxc5 {[%emt 0:00:37]} Bxb2 {[%emt 0:02:18]} 25. Bxf8 {[%emt 0:04:14]} Kxf8 {[%emt 0:00:25]} 26. Rd8+ {[%emt 0:00:22]} Ke7 {[%emt 0:00:11]} 27. Rad1 {[%emt 0:00:01]} Bc6 {[%emt 0:01:02]} 28. Rc8 {[%emt 0:00:37]} Bd7 {[%emt 0:01:31]} 29. Rc4 {[%emt 0:01:29]} f5 {[%emt 0:00:56]} 30. Kh1 {[%emt 0:01:28]} Bb5 {[%emt 0:00:20]} 31. Rc7+ {[%emt 0:00:56]} Kf6 {[%emt 0:00:08]} 32. Rd6+ {[%emt 0:00:39]} Kg5 {[%emt 0:00:37]} 33. Rxg7+ {[%emt 0:00:43]} Bxg7 {[%emt 0:00:00]} 0-1

[Event "23rd Hoogeveen Open 2019"]
[Site "Hoogeveen"]
[Date "2019.10.21"]
[Round "3.33"]
[White "Gijsen, William"]
[Black "Fehr, Axel"]
[Result "0-1"]
[ECO "B90"]
[WhiteElo "2091"]
[BlackElo "2045"]
[Annotator "NA RC"]
[PlyCount "112"]
[EventDate "2019.10.19"]
[EventType "swiss"]
[EventCountry "NED"]
[SourceTitle "playchess.com"]
[Source "ChessBase"]
[SourceQuality "1"]
[TimeControl "40/5400+30:1800+30"]

1. e4 {[%emt 0:00:00]} c5 {[%emt 0:00:00]} 2. Nf3 {[%emt 0:00:00]} d6 {[%emt 0:00:00]} 3. d4 {[%emt 0:00:00]} cxd4 {[%emt 0:00:00]} 4. Nxd4 {[%emt 0:00:00]} Nf6 {[%emt 0:00:00]} 5. Nc3 {[%emt 0:00:00]} a6 {[%emt 0:00:02]} 6. Be3 {[%emt 0:00:57]} e5 {[%emt 0:00:12]} 7. Nb3 {[%emt 0:00:06]} Be6 {[%emt 0:01:46]} 8. Qd2 {[%emt 0:01:52]} Nbd7 {[%emt 0:03:36]} 9. f3 {[%emt 0:00:20]} h5 {[%emt 0:00:55]} 10. Rg1 {[%emt 0:02:53] B90: Sicilian Najdorf: Unusual White 6th moves, 6 Be3 Ng4 and 6 Be3 e5} (10. O-O-O Be7 11. Bg5 b5 12. h4 Rc8 13. Kb1 O-O 14. a3 Re8 15. Be2 Qb6 16. Rhg1 Bf8 17. Nc1 Rc7 18. N1a2 Rec8 {0-1 (36) Inarkiev,E (2693)-Vidit,S (2707) Danzhou 2019}) 10... Rc8 {[%emt 0:05:02]} 11. O-O-O {[%emt 0:01:38]} Qc7 $146 {[%emt 0:06:01]} ({Predecessor:} 11... b5 12. Qf2 Rxc3 13. bxc3 Qc7 14. Kb2 Be7 15. Bd3 O-O 16. g4 Rc8 17. gxh5 d5 18. exd5 Nxd5 19. Qg3 Bf6 20. Bg5 Qxc3+ 21. Kc1 Nf4 22. Bxf4 exf4 23. Qxf4 Ne5 24. Nd4 Nxd3+ 25. Rxd3 Qxd3 {0-1 (25) Yeung,W (1717)-Peng,S (2297) Grapevine 2019}) 12. Kb1 {[%emt 0:02:35]} Nb6 {[%emt 0:08:31]} 13. Bg5 {[%emt 0:12:48]} Nbd7 {[%emt 0:06:32]} 14. Be2 {[%emt 0:05:39]} Be7 {[%emt 0:02:54]} 15. Rc1 {[%emt 0:04:58]} b5 {[%emt 0:06:17]} 16. Bxf6 {[%emt 0:00:34]} Bxf6 {[%emt 0:08:23]} 17. Bxb5 {[%emt 0:02:58]} axb5 {[%emt 0:06:46]} 18. Nxb5 {[%emt 0:00:13]} Qb6 {[%emt 0:00:36]} 19. Nxd6+ {[%emt 0:00:36]} Ke7 {[%emt 0:00:08]} 20. Nxc8+ {[%emt 0:00:23]} Rxc8 {[%emt 0:00:04]} 21. g4 {[%emt 0:01:39]} hxg4 {[%emt 0:00:24]} 22. fxg4 {[%emt 0:00:43]} g5 {[%emt 0:04:18]} 23. Rg3 {[%emt 0:07:42]} Qb7 {[%emt 0:02:49]} 24. Qe3 {[%emt 0:05:48]} Qa6 {[%emt 0:05:31]} (24... Kf8 $17) 25. Rg2 {[%emt 0:06:43]} Ke8 {[%emt 0:02:45]} 26. Rd1 {[%emt 0:06:08]} Ra8 {[%emt 0:05:03]} 27. a3 {[%emt 0:00:43]} Be7 {[%emt 0:08:27]} 28. Qc3 {[%emt 0:13:19]} Rc8 {[%emt 0:04:49]} 29. Qe3 {[%emt 0:05:00]} (29. Qh3 $15) 29... Qa4 {[%emt 0:05:02]} 30. Rd3 {[%emt 0:05:38]} Rc4 {[%emt 0:00:48]} 31. Rc3 {[%emt 0:02:54]} Rxc3 {[%emt 0:04:27]} 32. Qxc3 {[%emt 0:00:02]} Qxe4 {[%emt 0:00:20] Double Attack} 33. Rg1 {[%emt 0:00:37]} Kf8 {[%emt 0:01:02]} 34. h3 {[%emt 0:01:18]} Kg7 {[%emt 0:00:12]} 35. Rd1 {[%emt 0:00:31]} Qe2 {[%emt 0:00:41]} 36. Rd3 {[%emt 0:01:27]} (36. Re1 $5 {[%cal Re1e2]} Qb5 37. Rd1 $15) 36... Qf1+ {[%emt 0:00:20]} 37. Nc1 {[%emt 0:00:49]} Bf6 {[%emt 0:00:21]} ({Black should play} 37... Qg1 $15) 38. Rf3 $11 {[%emt 0:01:16] and White has nothing to worry.} Qd1 {[%emt 0:00:28]} (38... Qb5 39. Qb4) 39. Rd3 {[%emt 0:00:59]} Qf1 {[%emt 0:00:15]} 40. Qc7 $2 {[%emt 0:01:17]} e4 {[%emt 0:02:49]} 41. Re3 {[%emt 0:10:29]} Be5 {[%emt 0:04:21]} (41... Ne5 $19 {and Black stays clearly on top.} 42. Rxe4 Nc4 {[%mdl 64] Discovered Attack} 43. Rxc4 Bxc4) 42. Qa5 {[%emt 0:00:44]} Qf4 {[%emt 0:06:52]} 43. Qe1 {[%emt 0:01:56]} Nf6 {[%emt 0:03:24]} 44. c3 {[%emt 0:00:57]} Bc7 {[%emt 0:00:26]} 45. Na2 {[%emt 0:04:02]} Bb6 {[%emt 0:00:24]} 46. Re2 {[%emt 0:00:56]} Bc4 {[%emt 0:00:19]} 47. Nc1 {[%emt 0:02:24]} Bxe2 {[%emt 0:00:57]} 48. Nxe2 {[%emt 0:00:17]} Qe3 {[%emt 0:00:35]} 49. Qd1 {[%emt 0:04:30]} Qxh3 {[%emt 0:01:37]} 50. b4 {[%emt 0:01:16]} Qxg4 {[%emt 0:00:50]} 51. c4 {[%emt 0:00:47]} Qf3 {[%emt 0:02:04]} 52. c5 {[%emt 0:01:58]} Bc7 {[%emt 0:00:23]} 53. Ka2 {[%emt 0:01:22]} g4 $19 {[%emt 0:01:36]} 54. b5 {[%emt 0:00:38]} Qd3 {[%emt 0:00:45]} 55. Nc3 {[%emt 0:04:32]} Qxc3 {[%emt 0:02:00]} 56. b6 {[%emt 0:00:19]} Be5 {[%emt 0:00:45]} 0-1

[Event "23rd Hoogeveen Open 2019"]
[Site "Hoogeveen"]
[Date "2019.10.21"]
[Round "3.34"]
[White "Pekin, Tolgay"]
[Black "Merkon, Oseb"]
[Result "1/2-1/2"]
[ECO "B31"]
[WhiteElo "2083"]
[BlackElo "1930"]
[Annotator "NA RC"]
[PlyCount "99"]
[EventDate "2019.10.19"]
[EventType "swiss"]
[EventCountry "NED"]
[SourceTitle "playchess.com"]
[Source "ChessBase"]
[SourceQuality "1"]
[TimeControl "40/5400+30:1800+30"]

1. e4 {[%emt 0:06:00]} c5 {[%emt 0:00:00]} 2. Nf3 {[%emt 0:00:05]} Nc6 {[%emt 0:00:09]} 3. Bb5 {[%emt 0:00:20]} g6 {[%emt 0:00:05]} 4. Bxc6 {[%emt 0:00:06]} dxc6 {[%emt 0:00:02]} 5. d3 {[%emt 0:00:16]} Bg7 {[%emt 0:00:05]} 6. h3 {[%emt 0:00:07]} Nf6 {[%emt 0:01:44]} 7. Nc3 {[%emt 0:01:05]} Nd7 {[%emt 0:00:20]} 8. Be3 {[%emt 0:00:33]} e5 {[%emt 0:00:25]} 9. Qd2 {[%emt 0:00:28]} h6 {[%emt 0:00:07] B31: Sicilian: 2...Nc6 3 Bb5 g6} 10. O-O {[%emt 0:00:38]} b6 {[%emt 0:00:26]} 11. Nh2 {[%emt 0:00:45]} g5 {[%emt 0:07:34]} (11... Nf6 12. a3 Be6 13. b4 Nd5 14. exd5 cxd5 15. Qe1 d4 16. Bd2 dxc3 17. Bxc3 {½-½ (33) Dominguez Perez,L (2763)-Abasov,N (2632) Khanty-Mansiysk 2019}) 12. Ne2 {[%emt 0:01:40]} Nf8 {[%emt 0:00:38]} 13. Ng3 {[%emt 0:01:10]} Ne6 {[%emt 0:02:03]} 14. Nh5 $146 {[%emt 0:01:23]} ({Predecessor:} 14. Nf5 Bf8 15. c3 Ba6 16. Ng4 f6 17. f3 {1-0 (47) Djurovic,G (2328)-Kozul,Z (2595) Zadar 2010}) 14... O-O {[%emt 0:03:22]} 15. Ng4 {[%emt 0:06:19]} Nf4 {[%emt 0:06:38]} 16. Nxg7 {[%emt 0:10:10]} Bxg4 {[%emt 0:00:36]} 17. hxg4 {[%emt 0:11:26]} Kxg7 {[%emt 0:00:07]} 18. g3 {[%emt 0:02:54]} Ne6 {[%emt 0:08:59]} 19. Kg2 {[%emt 0:05:32]} Qe7 {[%emt 0:07:30]} 20. f3 {[%emt 0:11:47]} Rad8 {[%emt 0:03:43]} 21. Qf2 {[%emt 0:00:44]} f6 {[%emt 0:17:19]} 22. a4 {[%emt 0:01:26]} a5 {[%emt 0:08:10]} 23. f4 {[%emt 0:01:32]} exf4 {[%emt 0:04:25]} 24. gxf4 {[%emt 0:00:11]} Nxf4+ {[%emt 0:02:08]} 25. Bxf4 {[%emt 0:00:05]} gxf4 {[%emt 0:00:03]} 26. Qxf4 {[%emt 0:00:55]} Qe5 {[%emt 0:12:30]} 27. Qxe5 {[%emt 0:01:05]} fxe5 {[%emt 0:00:02]} 28. Rf5 {[%emt 0:00:07]} c4 {[%emt 0:01:33]} 29. Ra3 {[%emt 0:10:38]} Rd4 {[%emt 0:06:25]} 30. Kf3 {[%emt 0:08:09]} cxd3 {[%emt 0:01:03]} 31. cxd3 {[%emt 0:02:01]} Rfd8 {[%emt 0:00:20]} 32. Ke3 {[%emt 0:00:28]} Rb4 {[%emt 0:00:31]} 33. Rxe5 {[%emt 0:04:09]} Rxb2 {[%emt 0:00:01]} 34. Rc3 {[%emt 0:01:56]} c5 {[%emt 0:00:21]} 35. Re7+ {[%emt 0:00:49]} Kf6 {[%emt 0:00:57]} 36. Rb7 {[%emt 0:00:22]} Rb4 {[%emt 0:00:57]} 37. Kf4 {[%emt 0:01:28]} Rd6 {[%emt 0:03:00]} 38. Rc4 {[%emt 0:02:38]} Rxd3 {[%emt 0:03:42]} 39. Rxb4 {[%emt 0:00:09]} axb4 {[%emt 0:00:11]} 40. Rxb6+ {[%emt 0:00:09]} Kg7 {[%emt 0:01:05]} 41. Rb5 {[%emt 0:34:04]} Ra3 {[%emt 0:09:35]} 42. Rxc5 {[%emt 0:00:00]} Rxa4 {[%emt 0:00:02]} 43. Rb5 {[%emt 0:00:00]} Ra1 {[%emt 0:02:31]} 44. Rxb4 {[%emt 0:00:00]} Rf1+ {[%emt 0:00:21]} 45. Ke3 {[%emt 0:00:00]} Kf6 {[%emt 0:05:11]} 46. Rb8 {[%emt 0:00:00]} Re1+ {[%emt 0:01:02]} 47. Kf3 {[%emt 0:00:00]} Rf1+ {[%emt 0:00:07]} 48. Ke2 {[%emt 0:00:00]} Rf4 {[%emt 0:03:30]} 49. Rf8+ {[%emt 0:00:00]} Ke5 {[%emt 0:00:04]} 50. Rxf4 $11 {[%emt 0:00:00]} 1/2-1/2

[Event "23rd Hoogeveen Open 2019"]
[Site "Hoogeveen"]
[Date "2019.10.21"]
[Round "4.2"]
[White "Akash, Ganesan"]
[Black "Basso, Pier Luigi"]
[Result "1-0"]
[ECO "B15"]
[WhiteElo "2449"]
[BlackElo "2575"]
[Annotator "ChessBase"]
[PlyCount "115"]
[EventDate "2019.10.19"]
[EventType "swiss"]
[EventCountry "NED"]
[SourceTitle "playchess.com"]
[Source "ChessBase"]
[SourceQuality "1"]
[TimeControl "40/5400+30:1800+30"]

1. e4 {[%emt 0:00:27]} g6 {[%emt 0:20:25]} 2. d4 {[%emt 0:00:17]} Bg7 {[%emt 0:00:45]} 3. Nc3 {[%emt 0:00:09]} c6 {[%emt 0:00:05]} 4. Nf3 {[%emt 0:00:20]} d5 {[%emt 0:00:04]} 5. h3 {[%emt 0:00:10]} Nf6 {[%emt 0:00:05]} 6. Bd3 {[%emt 0:00:56]} c5 {[%emt 0:00:09]} 7. dxc5 {[%emt 0:17:07]} dxe4 {[%emt 0:00:07]} 8. Nxe4 {[%emt 0:01:59]} Nxe4 {[%emt 0:00:04]} 9. Bxe4 {[%emt 0:00:09]} Nd7 {[%emt 0:00:03]} 10. c6 {[%emt 0:03:12]} bxc6 {[%emt 0:00:07]} 11. O-O {[%emt 0:01:33]} Qc7 {[%emt 0:03:09]} 12. c3 {[%emt 0:05:24]} O-O {[%emt 0:04:59]} 13. Re1 {[%emt 0:14:05]} Nc5 {[%emt 0:07:38]} 14. Bc2 {[%emt 0:04:21]} Ba6 {[%emt 0:02:00]} 15. Be3 {[%emt 0:00:58]} Rad8 {[%emt 0:01:24]} 16. Qc1 {[%emt 0:01:04]} Nd3 {[%emt 0:01:15]} 17. Bxd3 {[%emt 0:00:05]} Rxd3 {[%emt 0:01:05]} 18. Bf4 {[%emt 0:05:30]} Qb7 {[%emt 0:02:50]} 19. Bh6 {[%emt 0:01:42]} e6 {[%emt 0:09:03]} 20. Bxg7 {[%emt 0:02:07]} Kxg7 {[%emt 0:00:43]} 21. Ne5 {[%emt 0:03:16]} Rdd8 {[%emt 0:04:22]} 22. Ng4 {[%emt 0:02:10]} Qe7 {[%emt 0:01:45]} 23. Qe3 {[%emt 0:04:43]} Bc8 {[%emt 0:02:24]} 24. Ne5 {[%emt 0:02:13]} Qb7 {[%emt 0:05:34]} 25. b4 {[%emt 0:00:57]} f6 {[%emt 0:01:25]} 26. Nc4 {[%emt 0:00:59]} Rd5 {[%emt 0:00:47]} 27. Na5 {[%emt 0:01:11]} Qd7 {[%emt 0:02:09]} 28. c4 {[%emt 0:02:54]} Re5 {[%emt 0:01:56]} 29. Red1 {[%emt 0:08:07]} Qc7 {[%emt 0:06:54]} 30. Qc3 {[%emt 0:02:06]} c5 {[%emt 0:00:13]} 31. b5 {[%emt 0:00:14]} Bb7 {[%emt 0:00:42]} 32. Nxb7 {[%emt 0:04:44]} Qxb7 {[%emt 0:00:35]} 33. Qf3 {[%emt 0:00:27]} Qxf3 {[%emt 0:04:00]} 34. gxf3 {[%emt 0:00:09]} Re2 {[%emt 0:00:05]} 35. a4 {[%emt 0:02:20]} Rf7 {[%emt 0:03:38]} 36. a5 {[%emt 0:00:49]} Rb2 {[%emt 0:01:40]} 37. a6 {[%emt 0:02:10]} Kh6 {[%emt 0:07:16]} 38. Rd6 {[%emt 0:00:41]} Rf8 {[%emt 0:00:06]} 39. Rd7 {[%emt 0:00:51]} Ra8 {[%emt 0:00:02]} 40. Rc7 {[%emt 0:00:52]} Kg5 {[%emt 0:01:57]} 41. Rxc5+ {[%emt 0:30:59]} Kf4 {[%emt 0:30:01]} 42. Kg2 {[%emt 0:00:53]} Rd8 {[%emt 0:00:08]} 43. Rc7 {[%emt 0:02:24]} Rd3 {[%emt 0:00:51]} 44. Rxh7 {[%emt 0:03:22]} g5 {[%emt 0:00:23]} 45. Rxa7 {[%emt 0:00:00]} Rxf3 {[%emt 0:00:00]} 46. Rf1 {[%emt 0:00:00]} Rg3+ {[%emt 0:00:00]} 47. Kh2 {[%emt 0:00:00]} Ra3 {[%emt 0:00:00]} 48. Rd7 {[%emt 0:00:00]} e5 {[%emt 0:00:00]} 49. Rdd1 {[%emt 0:00:00]} g4 {[%emt 0:00:00]} 50. hxg4 {[%emt 0:00:00]} Kxg4 {[%emt 0:00:00]} 51. Ra1 {[%emt 0:00:00]} Rh3+ {[%emt 0:00:00]} 52. Kg1 {[%emt 0:00:00]} Rh8 {[%emt 0:00:00]} 53. a7 {[%emt 0:00:00]} Ra8 {[%emt 0:00:00]} 54. Rfb1 {[%emt 0:00:00]} Rc2 {[%emt 0:00:00]} 55. b6 {[%emt 0:00:00]} Kh3 {[%emt 0:00:00]} 56. Ra3+ {[%emt 0:00:00]} Kh4 {[%emt 0:00:00]} 57. b7 {[%emt 0:00:00]} Rg8+ {[%emt 0:00:00]} 58. Rg3 {[%emt 0:00:00]} 1-0

[Event "23rd Hoogeveen Open 2019"]
[Site "Hoogeveen"]
[Date "2019.10.21"]
[Round "4.3"]
[White "Harutjunyan, Gevorg"]
[Black "Pruijssers, Roeland"]
[Result "0-1"]
[ECO "B01"]
[WhiteElo "2428"]
[BlackElo "2550"]
[Annotator "ChessBase"]
[PlyCount "74"]
[EventDate "2019.10.19"]
[EventType "swiss"]
[EventCountry "NED"]
[SourceTitle "playchess.com"]
[Source "ChessBase"]
[SourceQuality "1"]
[TimeControl "40/5400+30:1800+30"]

1. e4 {[%emt 0:00:00]} d5 {[%emt 0:00:00]} 2. exd5 {[%emt 0:00:00]} Qxd5 {[%emt 0:00:00]} 3. Nc3 {[%emt 0:00:00]} Qa5 {[%emt 0:00:00]} 4. d4 {[%emt 0:02:11]} Nf6 {[%emt 0:00:01]} 5. Nf3 {[%emt 0:00:35]} Bf5 {[%emt 0:00:06]} 6. Ne5 {[%emt 0:04:17]} c6 {[%emt 0:03:53]} 7. g4 {[%emt 0:03:37]} Be6 {[%emt 0:03:27]} 8. Nc4 {[%emt 0:12:46]} Qd8 {[%emt 0:09:15]} 9. h3 {[%emt 0:04:43]} g6 {[%emt 0:02:53]} 10. Bf4 {[%emt 0:04:37]} Bg7 {[%emt 0:16:05]} 11. Qd2 {[%emt 0:01:56]} Nbd7 {[%emt 0:00:13]} 12. Ne3 {[%emt 0:04:07]} O-O {[%emt 0:05:23]} 13. Bg2 {[%emt 0:02:24]} Nb6 {[%emt 0:08:53]} 14. O-O {[%emt 0:03:58]} h5 {[%emt 0:03:07]} 15. g5 {[%emt 0:06:19]} Nfd5 {[%emt 0:01:26]} 16. Ncxd5 {[%emt 0:05:34]} Nxd5 {[%emt 0:00:15]} 17. Nxd5 {[%emt 0:11:51]} Bxd5 {[%emt 0:00:11]} 18. Bxd5 {[%emt 0:03:16]} Qxd5 {[%emt 0:00:08]} 19. Rfe1 {[%emt 0:04:06]} Qf5 {[%emt 0:04:42]} 20. Rxe7 {[%emt 0:02:59]} Qxh3 {[%emt 0:03:29]} 21. Qe3 {[%emt 0:02:23]} Qg4+ {[%emt 0:01:10]} 22. Kh2 {[%emt 0:04:44]} Rad8 {[%emt 0:09:22]} 23. c3 {[%emt 0:00:41]} Rd5 {[%emt 0:00:28]} 24. f3 {[%emt 0:04:24]} Qc8 {[%emt 0:03:36]} 25. Re1 {[%emt 0:01:22]} a5 {[%emt 0:10:28]} 26. Rc7 {[%emt 0:02:12]} Qa8 {[%emt 0:00:03]} 27. Qd3 {[%emt 0:03:09]} Rf5 {[%emt 0:01:04]} 28. Kg3 {[%emt 0:03:26]} Qd8 {[%emt 0:10:01]} 29. Ree7 {[%emt 0:01:39]} Qd5 {[%emt 0:01:38]} 30. c4 {[%emt 0:01:11]} Rxg5+ {[%emt 0:01:00]} 31. Bxg5 {[%emt 0:00:31]} Qxg5+ {[%emt 0:00:02]} 32. Kf2 {[%emt 0:00:31]} h4 {[%emt 0:00:21]} 33. Qe3 {[%emt 0:00:28]} Qg3+ {[%emt 0:01:17]} 34. Ke2 {[%emt 0:00:02]} h3 {[%emt 0:01:30]} 35. Qf2 {[%emt 0:00:50]} Qf4 {[%emt 0:00:13]} 36. Rcd7 {[%emt 0:00:31]} h2 {[%emt 0:00:36]} 37. Qg2 {[%emt 0:00:36]} Qc1 {[%emt 0:00:37]} 0-1